[Event "*** Titled Tuesday Blitz"]
[Site "Chess.com"]
[Date "2021.03.02"]
[Round "7"]
[White "GelmanAlexander"]
[Black "MateusViageiro"]
[Result "1-0"]
[WhiteElo "2557"]
[BlackElo "2361"]
[TimeControl "180+1"]
[EndTime "11:18:49 PST"]
[Termination "GelmanAlexander won on time"]

1. d4 {[%clk 0:03:00.9]} 1... Nf6 {[%clk 0:02:58.2]} 2. Nc3 {[%clk 0:03:00.7]}
2... d5 {[%clk 0:02:53.7]} 3. Bf4 {[%clk 0:03:00.8]} 3... e6 {[%clk 0:02:49.5]}
4. Nb5 {[%clk 0:03:00.8]} 4... Na6 {[%clk 0:02:48.1]} 5. e3 {[%clk 0:03:00.9]}
5... c6 {[%clk 0:02:45.4]} 6. Nc3 {[%clk 0:03:00.8]} 6... Bb4 {[%clk 0:02:38]}
7. Ne2 {[%clk 0:02:52]} 7... Ne4 {[%clk 0:02:34.4]} 8. a3 {[%clk 0:02:41.4]}
8... Nxc3 {[%clk 0:02:26.8]} 9. Nxc3 {[%clk 0:02:39.1]} 9... Bxc3+ {[%clk
0:02:25.9]} 10. bxc3 {[%clk 0:02:39.5]} 10... Qa5 {[%clk 0:02:21.9]} 11. Qd2
{[%clk 0:02:39.2]} 11... b5 {[%clk 0:02:15.6]} 12. e4 {[%clk 0:02:11.6]} 12...
O-O {[%clk 0:02:13.6]} 13. Bd3 {[%clk 0:02:08.2]} 13... Rd8 {[%clk 0:01:37.7]}
14. O-O {[%clk 0:01:44.2]} 14... c5 {[%clk 0:01:36.6]} 15. exd5 {[%clk
0:01:37.9]} 15... exd5 {[%clk 0:01:23.5]} 16. a4 {[%clk 0:01:03.5]} 16... bxa4
{[%clk 0:01:07.6]} 17. Rfe1 {[%clk 0:00:50.6]} 17... c4 {[%clk 0:01:06.1]} 18.
Bf1 {[%clk 0:00:49.9]} 18... Be6 {[%clk 0:01:02.8]} 19. h4 {[%clk 0:00:44.3]}
19... Rd7 {[%clk 0:00:49]} 20. Re3 {[%clk 0:00:42.6]} 20... Rb7 {[%clk
0:00:44.4]} 21. Rg3 {[%clk 0:00:42.2]} 21... Bf5 {[%clk 0:00:31.1]} 22. Be5
{[%clk 0:00:36.2]} 22... f6 {[%clk 0:00:19.8]} 23. Bxf6 {[%clk 0:00:36.3]} 23...
Qb6 {[%clk 0:00:17.8]} 24. Be5 {[%clk 0:00:34.2]} 24... Qb2 {[%clk 0:00:16.8]}
25. Rxa4 {[%clk 0:00:33.1]} 25... Nb8 {[%clk 0:00:14.9]} 26. Ra5 {[%clk
0:00:27.7]} 26... Qxc2 {[%clk 0:00:14.3]} 27. Qg5 {[%clk 0:00:25.2]} 27... Nc6
{[%clk 0:00:12.1]} 28. Rxd5 {[%clk 0:00:23.2]} 28... Nxe5 {[%clk 0:00:11.5]} 29.
Rxe5 {[%clk 0:00:22.5]} 29... Bd3 {[%clk 0:00:10.2]} 30. Re7 {[%clk 0:00:13.5]}
30... Rxe7 {[%clk 0:00:07.8]} 31. Qxe7 {[%clk 0:00:14.4]} 31... g6 {[%clk
0:00:04.7]} 32. h5 {[%clk 0:00:09.6]} 32... Qd1 {[%clk 0:00:04.2]} 33. h6 {[%clk
0:00:06.3]} 33... Qxf1+ {[%clk 0:00:04.3]} 34. Kh2 {[%clk 0:00:06.9]} 1-0

[Event "*** Titled Tuesday Blitz"]
[Site "Chess.com"]
[Date "2021.03.02"]
[Round "7"]
[White "frankshar"]
[Black "VitaRasik"]
[Result "0-1"]
[WhiteElo "2353"]
[BlackElo "2554"]
[TimeControl "180+1"]
[EndTime "11:18:49 PST"]
[Termination "VitaRasik won by resignation"]

1. d4 {[%clk 0:03:00.9]} 1... d6 {[%clk 0:02:59.4]} 2. e4 {[%clk 0:03:00.4]}
2... g6 {[%clk 0:02:59.2]} 3. c4 {[%clk 0:02:54.9]} 3... Nf6 {[%clk 0:02:56]} 4.
Nc3 {[%clk 0:02:54.7]} 4... Bg7 {[%clk 0:02:56.1]} 5. Nf3 {[%clk 0:02:54.4]}
5... O-O {[%clk 0:02:56]} 6. Be2 {[%clk 0:02:53.1]} 6... Nbd7 {[%clk 0:02:56.1]}
7. O-O {[%clk 0:02:52.8]} 7... e5 {[%clk 0:02:56.1]} 8. Be3 {[%clk 0:02:52.5]}
8... Qe7 {[%clk 0:02:53.4]} 9. d5 {[%clk 0:02:45.8]} 9... Ng4 {[%clk 0:02:48.1]}
10. Bg5 {[%clk 0:02:44.3]} 10... f6 {[%clk 0:02:48.3]} 11. Bh4 {[%clk
0:02:42.8]} 11... a5 {[%clk 0:02:32.5]} 12. a3 {[%clk 0:02:17.8]} 12... Nh6
{[%clk 0:02:28.2]} 13. b4 {[%clk 0:02:05]} 13... g5 {[%clk 0:02:22.7]} 14. Bg3
{[%clk 0:02:04.3]} 14... f5 {[%clk 0:02:22.4]} 15. exf5 {[%clk 0:02:03.2]} 15...
e4 {[%clk 0:02:15]} 16. Nd4 {[%clk 0:02:00.6]} 16... axb4 {[%clk 0:02:15]} 17.
Ncb5 {[%clk 0:01:57.2]} 17... Nc5 {[%clk 0:02:03.6]} 18. axb4 {[%clk 0:01:38.3]}
18... Rxa1 {[%clk 0:02:02.8]} 19. Qxa1 {[%clk 0:01:39.2]} 19... Nb3 {[%clk
0:02:02.4]} 20. Qa7 {[%clk 0:01:17.9]} 20... Nxd4 {[%clk 0:01:52.8]} 21. Nxd4
{[%clk 0:01:18.8]} 21... Bxd4 {[%clk 0:01:29.4]} 22. Qxd4 {[%clk 0:01:19.7]}
22... Nxf5 {[%clk 0:01:29.2]} 23. Qc3 {[%clk 0:01:14.6]} 23... h6 {[%clk
0:01:25.6]} 24. Bd1 {[%clk 0:00:48.6]} 24... Qg7 {[%clk 0:01:13.3]} 25. Qxg7+
{[%clk 0:00:45.6]} 25... Kxg7 {[%clk 0:01:13.4]} 26. Bc2 {[%clk 0:00:44.9]}
26... h5 {[%clk 0:01:00.7]} 27. h3 {[%clk 0:00:24.3]} 27... Nxg3 {[%clk
0:00:45.6]} 28. fxg3 {[%clk 0:00:25.2]} 28... Rxf1+ {[%clk 0:00:45.3]} 29. Kxf1
{[%clk 0:00:26.1]} 29... Bf5 {[%clk 0:00:44.9]} 30. Ke2 {[%clk 0:00:23.8]} 30...
Kf6 {[%clk 0:00:44.4]} 31. Ke3 {[%clk 0:00:24.1]} 31... Ke5 {[%clk 0:00:44.6]}
32. Bd1 {[%clk 0:00:21.8]} 32... h4 {[%clk 0:00:43.7]} 33. gxh4 {[%clk
0:00:17.1]} 33... gxh4 {[%clk 0:00:43.3]} 34. Ba4 {[%clk 0:00:16.9]} 34... Bg6
{[%clk 0:00:36.6]} 35. Bd7 {[%clk 0:00:16]} 35... Bf5 {[%clk 0:00:30.6]} 36. Be8
{[%clk 0:00:10.5]} 36... Bh7 {[%clk 0:00:29.1]} 37. Bd7 {[%clk 0:00:10.2]} 37...
Bg6 {[%clk 0:00:28.2]} 38. Ba4 {[%clk 0:00:09.6]} 38... Bf7 {[%clk 0:00:24.5]}
39. Bc2 {[%clk 0:00:09.1]} 39... b5 {[%clk 0:00:21.3]} 40. cxb5 {[%clk
0:00:03.7]} 40... Bxd5 {[%clk 0:00:20.5]} 41. Bb1 {[%clk 0:00:04.1]} 41... Bb7
{[%clk 0:00:20.1]} 42. Bc2 {[%clk 0:00:02.6]} 42... d5 {[%clk 0:00:20.1]} 43. b6
{[%clk 0:00:03.3]} 43... d4+ {[%clk 0:00:20.3]} 44. Kd2 {[%clk 0:00:03.9]} 44...
cxb6 {[%clk 0:00:20.6]} 0-1

[Event "*** Titled Tuesday Blitz"]
[Site "Chess.com"]
[Date "2021.03.02"]
[Round "7"]
[White "jens1102"]
[Black "Jungle_Jaguar"]
[Result "1-0"]
[WhiteElo "2434"]
[BlackElo "2588"]
[TimeControl "180+1"]
[EndTime "11:18:50 PST"]
[Termination "jens1102 won by checkmate"]

1. e4 {[%clk 0:03:00.9]} 1... c5 {[%clk 0:02:57.4]} 2. Nf3 {[%clk 0:03:00.2]}
2... d6 {[%clk 0:02:57.7]} 3. d4 {[%clk 0:03:01]} 3... cxd4 {[%clk 0:02:58.6]}
4. Nxd4 {[%clk 0:03:01.8]} 4... Nf6 {[%clk 0:02:59.3]} 5. Nc3 {[%clk 0:03:02.6]}
5... Nc6 {[%clk 0:03:00]} 6. f3 {[%clk 0:03:03.4]} 6... e5 {[%clk 0:02:58.9]} 7.
Nb3 {[%clk 0:03:03.9]} 7... Be6 {[%clk 0:02:58.7]} 8. Be3 {[%clk 0:03:04.4]}
8... Be7 {[%clk 0:02:58.2]} 9. Qd2 {[%clk 0:03:04.4]} 9... O-O {[%clk
0:02:49.7]} 10. O-O-O {[%clk 0:03:04.5]} 10... a5 {[%clk 0:02:50.2]} 11. a4
{[%clk 0:03:04.8]} 11... Nb4 {[%clk 0:02:49.4]} 12. g4 {[%clk 0:03:03.9]} 12...
d5 {[%clk 0:02:46.5]} 13. g5 {[%clk 0:03:02.3]} 13... d4 {[%clk 0:02:46.9]} 14.
gxf6 {[%clk 0:02:56.4]} 14... Bxf6 {[%clk 0:02:47.8]} 15. Nxd4 {[%clk
0:02:47.3]} 15... exd4 {[%clk 0:02:42.6]} 16. Bxd4 {[%clk 0:02:48.2]} 16... Bxd4
{[%clk 0:02:12.5]} 17. Qxd4 {[%clk 0:02:49.1]} 17... Qc7 {[%clk 0:02:13.2]} 18.
Be2 {[%clk 0:02:28.6]} 18... Rac8 {[%clk 0:02:09.3]} 19. Rd2 {[%clk 0:02:07.7]}
19... Qf4 {[%clk 0:01:58]} 20. Rd1 {[%clk 0:01:58.3]} 20... Qxh2 {[%clk
0:01:44.6]} 21. Bc4 {[%clk 0:01:53.7]} 21... Qf4 {[%clk 0:01:37.1]} 22. Rg1
{[%clk 0:01:43.6]} 22... g6 {[%clk 0:01:33.9]} 23. Bxe6 {[%clk 0:01:43.5]} 23...
fxe6 {[%clk 0:01:34.8]} 24. Qd6 {[%clk 0:01:42]} 24... Qxd6 {[%clk 0:01:23.4]}
25. Rxd6 {[%clk 0:01:42.9]} 25... Rxf3 {[%clk 0:01:24]} 26. Rxe6 {[%clk
0:01:42.8]} 26... Rf2 {[%clk 0:01:21]} 27. Re7 {[%clk 0:01:39]} 27... Rxc2+
{[%clk 0:00:45]} 28. Kb1 {[%clk 0:01:38.6]} 28... Rh2 {[%clk 0:00:45.5]} 29. Rd1
{[%clk 0:01:31]} 29... g5 {[%clk 0:00:28.6]} 30. Nd5 {[%clk 0:01:31.1]} 30...
Rcc2 {[%clk 0:00:20.5]} 31. Nxb4 {[%clk 0:01:18]} 31... Rxb2+ {[%clk 0:00:20.6]}
32. Kc1 {[%clk 0:00:56.3]} 32... Rbf2 {[%clk 0:00:20.2]} 33. Nd3 {[%clk
0:00:44.5]} 33... Rc2+ {[%clk 0:00:18]} 34. Kb1 {[%clk 0:00:44.5]} 34... Rc4
{[%clk 0:00:18.3]} 35. Rxb7 {[%clk 0:00:42.5]} 35... Rd4 {[%clk 0:00:17.6]} 36.
Rc1 {[%clk 0:00:32.4]} 36... Rd8 {[%clk 0:00:14.1]} 37. Ne5 {[%clk 0:00:26.8]}
37... Re2 {[%clk 0:00:11.9]} 38. Ng4 {[%clk 0:00:25.1]} 38... h5 {[%clk
0:00:09.3]} 39. Nf6+ {[%clk 0:00:24.6]} 39... Kf8 {[%clk 0:00:10]} 40. Rf1
{[%clk 0:00:19.9]} 40... Red2 {[%clk 0:00:07.2]} 41. Nxh5+ {[%clk 0:00:14.9]}
41... Ke8 {[%clk 0:00:07.8]} 42. Ng7# {[%clk 0:00:13.6]} 1-0

[Event "*** Titled Tuesday Blitz"]
[Site "Chess.com"]
[Date "2021.03.02"]
[Round "7"]
[White "PaulfromSPb"]
[Black "Smirnov_Pavel"]
[Result "1-0"]
[WhiteElo "2731"]
[BlackElo "2851"]
[TimeControl "180+1"]
[EndTime "11:18:51 PST"]
[Termination "PaulfromSPb won on time"]

1. d4 {[%clk 0:03:00.9]} 1... Nf6 {[%clk 0:03:00.1]} 2. Bf4 {[%clk 0:03:00.6]}
2... e6 {[%clk 0:02:59.4]} 3. e3 {[%clk 0:03:00.8]} 3... c5 {[%clk 0:02:59.9]}
4. c3 {[%clk 0:03:01]} 4... b6 {[%clk 0:02:48.5]} 5. Nd2 {[%clk 0:03:00.2]} 5...
Bb7 {[%clk 0:02:43]} 6. Nc4 {[%clk 0:02:58.6]} 6... d5 {[%clk 0:02:36.1]} 7. Ne5
{[%clk 0:02:58.2]} 7... a6 {[%clk 0:02:33.3]} 8. Ngf3 {[%clk 0:02:56.9]} 8...
Be7 {[%clk 0:02:32.5]} 9. Bd3 {[%clk 0:02:50.8]} 9... O-O {[%clk 0:02:32.2]} 10.
h4 {[%clk 0:02:48.8]} 10... Ne4 {[%clk 0:02:28.7]} 11. h5 {[%clk 0:02:48.9]}
11... f6 {[%clk 0:02:25]} 12. Ng4 {[%clk 0:02:48.8]} 12... Qd7 {[%clk
0:02:22.7]} 13. Ngh2 {[%clk 0:02:23.3]} 13... Nc6 {[%clk 0:02:14]} 14. Qe2
{[%clk 0:02:22.6]} 14... Bd6 {[%clk 0:01:53.2]} 15. Bxd6 {[%clk 0:02:11.1]}
15... Nxd6 {[%clk 0:01:47.2]} 16. h6 {[%clk 0:02:05.4]} 16... g6 {[%clk
0:01:44]} 17. O-O-O {[%clk 0:01:56.3]} 17... c4 {[%clk 0:01:34.8]} 18. Bc2
{[%clk 0:01:56]} 18... b5 {[%clk 0:01:35.4]} 19. Kd2 {[%clk 0:01:44.1]} 19... b4
{[%clk 0:01:25]} 20. Ke1 {[%clk 0:01:43.7]} 20... Qc7 {[%clk 0:01:18.4]} 21. Qd2
{[%clk 0:01:26.9]} 21... Qa5 {[%clk 0:01:15.2]} 22. Ke2 {[%clk 0:01:22.6]} 22...
bxc3 {[%clk 0:01:02.4]} 23. Qxc3 {[%clk 0:01:22.8]} 23... Qb6 {[%clk 0:01:02.4]}
24. a4 {[%clk 0:01:19.9]} 24... a5 {[%clk 0:00:58.2]} 25. Nd2 {[%clk 0:01:17.7]}
25... Ba6 {[%clk 0:00:56.3]} 26. f3 {[%clk 0:01:03.1]} 26... Rab8 {[%clk
0:00:54.3]} 27. Rb1 {[%clk 0:01:02.9]} 27... e5 {[%clk 0:00:54.3]} 28. dxe5
{[%clk 0:00:48.2]} 28... fxe5 {[%clk 0:00:51.3]} 29. Qa3 {[%clk 0:00:40.3]}
29... Nb4 {[%clk 0:00:36.7]} 30. Kd1 {[%clk 0:00:40.4]} 30... d4 {[%clk
0:00:36]} 31. exd4 {[%clk 0:00:39.2]} 31... exd4 {[%clk 0:00:33.6]} 32. Be4
{[%clk 0:00:39.2]} 32... Rbc8 {[%clk 0:00:20.2]} 33. Ng4 {[%clk 0:00:37]} 33...
c3 {[%clk 0:00:18]} 34. Qb3+ {[%clk 0:00:36.8]} 34... Bc4 {[%clk 0:00:12.5]} 35.
Nxc4 {[%clk 0:00:36]} 35... Nxc4 {[%clk 0:00:12.9]} 36. bxc3 {[%clk 0:00:32.3]}
36... dxc3 {[%clk 0:00:12.2]} 37. Qxc3 {[%clk 0:00:31.9]} 37... Rf7 {[%clk
0:00:07.6]} 38. Ke1 {[%clk 0:00:30.9]} 38... Re7 {[%clk 0:00:04.1]} 39. Nf6+
{[%clk 0:00:30.1]} 39... Kf7 {[%clk 0:00:03]} 40. Nd5 {[%clk 0:00:30.2]} 40...
Qd6 {[%clk 0:00:01.6]} 41. Qg7+ {[%clk 0:00:29.9]} 41... Ke6 {[%clk 0:00:01.2]}
42. Qxe7+ {[%clk 0:00:29.2]} 42... Qxe7 {[%clk 0:00:02.1]} 43. Nxe7 {[%clk
0:00:29.3]} 43... Kxe7 {[%clk 0:00:02.6]} 44. Kf2 {[%clk 0:00:29.2]} 44... Nd2
{[%clk 0:00:01.7]} 45. Rbe1 {[%clk 0:00:26.7]} 1-0

[Event "*** Titled Tuesday Blitz"]
[Site "Chess.com"]
[Date "2021.03.02"]
[Round "7"]
[White "AntonovaNadezhda"]
[Black "Gerryisplaying"]
[Result "1-0"]
[WhiteElo "2137"]
[BlackElo "2224"]
[TimeControl "180+1"]
[EndTime "11:18:52 PST"]
[Termination "AntonovaNadezhda won by resignation"]

1. d4 {[%clk 0:03:00.9]} 1... d5 {[%clk 0:02:59]} 2. Nf3 {[%clk 0:03:01.5]} 2...
Bg4 {[%clk 0:02:57.9]} 3. e3 {[%clk 0:03:01.5]} 3... Nd7 {[%clk 0:02:54.5]} 4.
Nbd2 {[%clk 0:02:59.5]} 4... e6 {[%clk 0:02:54.1]} 5. Bd3 {[%clk 0:02:56.1]}
5... Bd6 {[%clk 0:02:49.2]} 6. O-O {[%clk 0:02:55.3]} 6... f5 {[%clk 0:02:46.1]}
7. h3 {[%clk 0:02:52.6]} 7... Bh5 {[%clk 0:02:45.7]} 8. b3 {[%clk 0:02:45.2]}
8... Nh6 {[%clk 0:02:39.5]} 9. Bb2 {[%clk 0:02:45.7]} 9... O-O {[%clk
0:02:38.6]} 10. Rc1 {[%clk 0:02:46.2]} 10... Nf6 {[%clk 0:02:30.1]} 11. c4
{[%clk 0:02:45.6]} 11... c6 {[%clk 0:02:30.2]} 12. c5 {[%clk 0:02:44.1]} 12...
Bb8 {[%clk 0:02:25.8]} 13. b4 {[%clk 0:02:44.1]} 13... Ne4 {[%clk 0:02:19.4]}
14. Qc2 {[%clk 0:02:43.9]} 14... Nxd2 {[%clk 0:02:09.4]} 15. Nxd2 {[%clk
0:02:42.3]} 15... Qc7 {[%clk 0:02:09.9]} 16. g3 {[%clk 0:02:39.7]} 16... Qf7
{[%clk 0:02:02.8]} 17. f4 {[%clk 0:02:36.3]} 17... Qg6 {[%clk 0:01:57.4]} 18.
Kh2 {[%clk 0:02:35.4]} 18... Qf6 {[%clk 0:01:48.1]} 19. Nf3 {[%clk 0:02:32.3]}
19... Bxf3 {[%clk 0:01:47.6]} 20. Rxf3 {[%clk 0:02:31.1]} 20... Qg6 {[%clk
0:01:47.4]} 21. a4 {[%clk 0:02:28]} 21... Qh5 {[%clk 0:01:46.7]} 22. Kg2 {[%clk
0:02:21]} 22... Rf6 {[%clk 0:01:41.9]} 23. Be2 {[%clk 0:02:16.1]} 23... Qf7
{[%clk 0:01:32.7]} 24. b5 {[%clk 0:02:13.5]} 24... Rg6 {[%clk 0:01:31.2]} 25. a5
{[%clk 0:02:03.6]} 25... Bc7 {[%clk 0:01:22.7]} 26. a6 {[%clk 0:02:00]} 26...
Bd8 {[%clk 0:01:16]} 27. axb7 {[%clk 0:01:56.5]} 27... Qxb7 {[%clk 0:01:16.8]}
28. bxc6 {[%clk 0:01:56.7]} 28... Qxc6 {[%clk 0:01:17.5]} 29. Bc3 {[%clk
0:01:51.8]} 29... a5 {[%clk 0:01:07.3]} 30. Rb1 {[%clk 0:01:47.4]} 30... a4
{[%clk 0:00:59]} 31. Bb5 {[%clk 0:01:45]} 31... Qc7 {[%clk 0:00:56.4]} 32. Bxa4
{[%clk 0:01:43.4]} 32... Qa7 {[%clk 0:00:40.2]} 33. Be8 {[%clk 0:01:20.1]} 33...
Rf6 {[%clk 0:00:36.4]} 34. c6 {[%clk 0:01:18.9]} 34... Bc7 {[%clk 0:00:32.9]}
35. Bd7 {[%clk 0:01:17.7]} 35... Qa2 {[%clk 0:00:30.9]} 36. Rf2 {[%clk
0:01:15.5]} 36... Qc4 {[%clk 0:00:28.9]} 37. Be1 {[%clk 0:01:09.1]} 37... Qa6
{[%clk 0:00:23.3]} 38. Rb7 {[%clk 0:01:04.8]} 38... Bd6 {[%clk 0:00:20.1]} 39.
Qb2 {[%clk 0:00:55.7]} 39... Nf7 {[%clk 0:00:18.8]} 40. Rb6 {[%clk 0:00:53.3]}
40... Qa7 {[%clk 0:00:17.6]} 41. g4 {[%clk 0:00:44.4]} 41... fxg4 {[%clk
0:00:16.6]} 42. hxg4 {[%clk 0:00:43.8]} 42... g5 {[%clk 0:00:16.8]} 43. fxg5
{[%clk 0:00:41.4]} 43... Rxf2+ {[%clk 0:00:16.2]} 44. Qxf2 {[%clk 0:00:40.5]}
44... Nxg5 {[%clk 0:00:16.4]} 45. Qh4 {[%clk 0:00:36.6]} 45... Ne4 {[%clk
0:00:13.9]} 46. Bxe6+ {[%clk 0:00:35.6]} 46... Kh8 {[%clk 0:00:13.9]} 47. Bf5
{[%clk 0:00:31.1]} 47... Qg7 {[%clk 0:00:10.4]} 48. Rb7 {[%clk 0:00:28.9]} 48...
Qg8 {[%clk 0:00:09.5]} 49. Rxh7+ {[%clk 0:00:27.8]} 1-0

[Event "*** Titled Tuesday Blitz"]
[Site "Chess.com"]
[Date "2021.03.02"]
[Round "7"]
[White "Vasily85"]
[Black "DinaBelenkaya"]
[Result "0-1"]
[WhiteElo "2452"]
[BlackElo "2323"]
[TimeControl "180+1"]
[EndTime "11:18:55 PST"]
[Termination "DinaBelenkaya won by resignation"]

1. d4 {[%clk 0:03:00.9]} 1... d5 {[%clk 0:02:57.1]} 2. Nc3 {[%clk 0:02:55.4]}
2... Nf6 {[%clk 0:02:56.1]} 3. Bf4 {[%clk 0:02:55.4]} 3... c6 {[%clk 0:02:47.1]}
4. e3 {[%clk 0:02:55.5]} 4... g6 {[%clk 0:02:45.6]} 5. h4 {[%clk 0:02:46.3]}
5... h6 {[%clk 0:02:44.5]} 6. Bd3 {[%clk 0:02:43.1]} 6... Bg7 {[%clk 0:02:43.4]}
7. Nf3 {[%clk 0:02:41.2]} 7... Nbd7 {[%clk 0:02:30.7]} 8. Ne5 {[%clk 0:02:34.9]}
8... Nxe5 {[%clk 0:02:19.2]} 9. Bxe5 {[%clk 0:02:26.7]} 9... b5 {[%clk
0:01:32.2]} 10. e4 {[%clk 0:01:54.8]} 10... b4 {[%clk 0:01:28.3]} 11. Na4 {[%clk
0:01:54.4]} 11... O-O {[%clk 0:01:15.6]} 12. Nc5 {[%clk 0:01:38.4]} 12... dxe4
{[%clk 0:01:10.7]} 13. Nxe4 {[%clk 0:01:38.6]} 13... Bf5 {[%clk 0:01:04.5]} 14.
Nc5 {[%clk 0:01:24.5]} 14... Qd5 {[%clk 0:00:56.5]} 15. Bxf5 {[%clk 0:01:18.7]}
15... gxf5 {[%clk 0:00:57.4]} 16. Qe2 {[%clk 0:01:14.5]} 16... Rfe8 {[%clk
0:00:36.6]} 17. Nd3 {[%clk 0:00:44.5]} 17... Rad8 {[%clk 0:00:31.5]} 18. Nxb4
{[%clk 0:00:42]} 18... Qa5 {[%clk 0:00:24.4]} 19. c3 {[%clk 0:00:36.6]} 19...
Qb6 {[%clk 0:00:16.6]} 20. Qc4 {[%clk 0:00:34.4]} 20... Rc8 {[%clk 0:00:09.3]}
21. O-O-O {[%clk 0:00:32.5]} 21... c5 {[%clk 0:00:09.6]} 22. Nd5 {[%clk
0:00:28.6]} 22... Nxd5 {[%clk 0:00:09.6]} 23. Qxd5 {[%clk 0:00:29.5]} 23... cxd4
{[%clk 0:00:08.7]} 24. Bxg7 {[%clk 0:00:27.4]} 24... Kxg7 {[%clk 0:00:09.6]} 25.
Qxd4+ {[%clk 0:00:27.5]} 25... Qxd4 {[%clk 0:00:09]} 26. Rxd4 {[%clk 0:00:28.4]}
26... e5 {[%clk 0:00:08.8]} 27. Rd7 {[%clk 0:00:28.5]} 27... a5 {[%clk
0:00:08.7]} 28. Rhd1 {[%clk 0:00:27.5]} 28... Rc4 {[%clk 0:00:08.8]} 29. g3
{[%clk 0:00:26.9]} 29... f4 {[%clk 0:00:07.9]} 30. R1d5 {[%clk 0:00:25.7]} 30...
fxg3 {[%clk 0:00:07.5]} 31. fxg3 {[%clk 0:00:26.6]} 31... e4 {[%clk 0:00:07.4]}
32. Kd2 {[%clk 0:00:25.4]} 32... e3+ {[%clk 0:00:07.6]} 33. Ke2 {[%clk 0:00:26]}
33... Rg4 {[%clk 0:00:08.2]} 34. Rf5 {[%clk 0:00:24.4]} 34... Rxg3 {[%clk
0:00:06.9]} 35. Rdxf7+ {[%clk 0:00:24.7]} 35... Kg8 {[%clk 0:00:07.3]} 36. Rf3
{[%clk 0:00:24.9]} 36... Rg2+ {[%clk 0:00:07.3]} 37. Ke1 {[%clk 0:00:25]} 37...
Rxb2 {[%clk 0:00:07.2]} 38. R7f4 {[%clk 0:00:18.2]} 38... e2 {[%clk 0:00:06.3]}
39. Rg4+ {[%clk 0:00:16.9]} 39... Kh8 {[%clk 0:00:06.2]} 40. Rf6 {[%clk
0:00:05.1]} 40... Rb1+ {[%clk 0:00:05.9]} 41. Kf2 {[%clk 0:00:05.6]} 41... e1=Q+
{[%clk 0:00:06.8]} 42. Kg2 {[%clk 0:00:06.2]} 42... Qe2+ {[%clk 0:00:06.6]} 43.
Kh3 {[%clk 0:00:06.6]} 43... Rh1+ {[%clk 0:00:06.3]} 0-1

[Event "*** Titled Tuesday Blitz"]
[Site "Chess.com"]
[Date "2021.03.02"]
[Round "7"]
[White "skoularikii"]
[Black "Thjop"]
[Result "1-0"]
[WhiteElo "2548"]
[BlackElo "2655"]
[TimeControl "180+1"]
[EndTime "11:18:57 PST"]
[Termination "skoularikii won by checkmate"]

1. e4 {[%clk 0:02:59.4]} 1... e6 {[%clk 0:02:58.9]} 2. d4 {[%clk 0:02:55.7]}
2... d5 {[%clk 0:02:59.8]} 3. Nc3 {[%clk 0:02:54.7]} 3... Bb4 {[%clk 0:02:59.8]}
4. exd5 {[%clk 0:02:55]} 4... exd5 {[%clk 0:02:59.9]} 5. Bd3 {[%clk 0:02:55.6]}
5... Nc6 {[%clk 0:02:56.5]} 6. Ne2 {[%clk 0:02:54.8]} 6... Qh4 {[%clk
0:02:54.5]} 7. Bf4 {[%clk 0:02:39.9]} 7... Bg4 {[%clk 0:02:37]} 8. Bg3 {[%clk
0:02:34.8]} 8... Qh5 {[%clk 0:02:34.3]} 9. f3 {[%clk 0:02:32.7]} 9... Bf5 {[%clk
0:02:29.7]} 10. Nf4 {[%clk 0:02:32]} 10... Qg5 {[%clk 0:02:25.3]} 11. Nxd5
{[%clk 0:02:00.1]} 11... Bxd3 {[%clk 0:02:07.4]} 12. Nxc7+ {[%clk 0:01:59.6]}
12... Kd7 {[%clk 0:02:04.9]} 13. Qxd3 {[%clk 0:01:54.9]} 13... Rc8 {[%clk
0:01:30.9]} 14. d5 {[%clk 0:01:48.3]} 14... Bxc3+ {[%clk 0:01:23.6]} 15. Qxc3
{[%clk 0:01:43.2]} 15... Nce7 {[%clk 0:01:15.4]} 16. Qc5 {[%clk 0:01:39.5]}
16... Nf5 {[%clk 0:01:10.6]} 17. Qb5+ {[%clk 0:01:33.6]} 17... Ke7 {[%clk
0:01:08.2]} 18. d6+ {[%clk 0:01:25.2]} 18... Kf6 {[%clk 0:01:05]} 19. Nd5+
{[%clk 0:01:18.6]} 19... Kg6 {[%clk 0:01:00.4]} 20. O-O {[%clk 0:00:59.8]} 20...
Rxc2 {[%clk 0:00:51.3]} 21. Qd3 {[%clk 0:00:55.3]} 21... Rd2 {[%clk 0:00:49.1]}
22. Qe4 {[%clk 0:00:42.9]} 22... Nf6 {[%clk 0:00:36.9]} 23. Ne7+ {[%clk
0:00:37.6]} 23... Kh5 {[%clk 0:00:33.4]} 24. Qxf5 {[%clk 0:00:36.1]} 24... Qxf5
{[%clk 0:00:27.3]} 25. Nxf5 {[%clk 0:00:37]} 25... Rc8 {[%clk 0:00:27.3]} 26.
Rad1 {[%clk 0:00:35.3]} 26... Rxb2 {[%clk 0:00:26]} 27. d7 {[%clk 0:00:33.5]}
27... Rcc2 {[%clk 0:00:24.5]} 28. Bf2 {[%clk 0:00:33.4]} 28... Nxd7 {[%clk
0:00:23]} 29. Rxd7 {[%clk 0:00:33.2]} 29... Kg6 {[%clk 0:00:22.6]} 30. Ne7+
{[%clk 0:00:31.9]} 30... Kf6 {[%clk 0:00:21.7]} 31. Ng8+ {[%clk 0:00:27.2]}
31... Ke6 {[%clk 0:00:21.7]} 32. Re7+ {[%clk 0:00:27]} 32... Kd6 {[%clk
0:00:22.2]} 33. Rxf7 {[%clk 0:00:27.2]} 33... Rxa2 {[%clk 0:00:23.1]} 34. Rxb7
{[%clk 0:00:25.8]} 34... a5 {[%clk 0:00:23.3]} 35. Rxg7 {[%clk 0:00:25.3]} 35...
a4 {[%clk 0:00:24.2]} 36. Rxh7 {[%clk 0:00:25.7]} 36... a3 {[%clk 0:00:25.1]}
37. Ra7 {[%clk 0:00:25.9]} 37... Kc6 {[%clk 0:00:24.7]} 38. Nf6 {[%clk
0:00:25.3]} 38... Kb5 {[%clk 0:00:22.8]} 39. Ne4 {[%clk 0:00:25.1]} 39... Kc4
{[%clk 0:00:21.7]} 40. h4 {[%clk 0:00:24.9]} 40... Kd3 {[%clk 0:00:21.9]} 41. h5
{[%clk 0:00:24.9]} 41... Kc4 {[%clk 0:00:18.6]} 42. h6 {[%clk 0:00:25.1]} 42...
Kb3 {[%clk 0:00:19.5]} 43. h7 {[%clk 0:00:25.1]} 43... Rc8 {[%clk 0:00:20.2]}
44. Bd4 {[%clk 0:00:24.7]} 44... Rac2 {[%clk 0:00:18.9]} 45. h8=Q {[%clk
0:00:24]} 45... Rxh8 {[%clk 0:00:19.8]} 46. Bxh8 {[%clk 0:00:24.1]} 46... a2
{[%clk 0:00:20.1]} 47. Ra1 {[%clk 0:00:21.3]} 47... Rc4 {[%clk 0:00:17.4]} 48.
R7xa2 {[%clk 0:00:20.9]} 48... Rxe4 {[%clk 0:00:18.3]} 49. fxe4 {[%clk
0:00:19.9]} 49... Kc4 {[%clk 0:00:19.2]} 50. e5 {[%clk 0:00:17.8]} 50... Kd3
{[%clk 0:00:20.1]} 51. e6 {[%clk 0:00:17.8]} 51... Kc4 {[%clk 0:00:21]} 52. e7
{[%clk 0:00:18.1]} 52... Kb3 {[%clk 0:00:21.9]} 53. e8=Q {[%clk 0:00:17.7]}
53... Kc4 {[%clk 0:00:22.8]} 54. Qc6+ {[%clk 0:00:17.8]} 54... Kb3 {[%clk
0:00:23.7]} 55. Qc3# {[%clk 0:00:15.9]} 1-0